bitfinex/quotes_ETHUSD_20251220
["timestamp","ask_amount","ask_price","bid_price","bid_amount"]
[1766257022036,0.44,2983.0,2982.3,0.44]
[1766257022236,0.38056601,2982.9,2982.3,0.44]
[1766257023331,1.44742641,2983.0,2982.3,0.44]
[1766257023549,0.01342012,2982.9,2982.3,0.44]
[1766257024063,0.01342012,2982.7,2982.3,0.44]
[1766257024360,3.36586923,2982.9,2981.7,1.7783]
[1766257024361,0.01342012,2982.8,2981.7,1.7783]
[1766257024523,0.01342012,2982.6,2981.8,1.00752452]
[1766257024850,0.45342012,2982.6,2981.9,1.7713]
[1766257025052,0.45342012,2982.6,2981.7,2.2113]
[1766257025234,0.45342012,2982.6,2981.8,0.67183183]
[1766257025561,0.45342012,2982.6,2981.7,2.2113]
[1766257025854,3.80620184,2982.6,2981.7,2.88313183]
[1766257026054,0.44780337,2982.5,2981.7,2.44313183]
[1766257026257,0.44780337,2982.5,2981.7,1.7713]
[1766257028046,1.00753806,2982.4,2981.7,1.7713]
[1766257033960,4.36056218,2982.4,2981.7,1.7713]
[1766257034260,4.36056218,2982.4,2981.6,0.44]
[1766257034460,0.48093656,2982.3,2981.6,0.44]
[1766257034773,1.00753806,2982.3,2981.6,0.44]
[1766257035056,1.00753806,2982.3,2981.9,1.7713]
[1766257035361,1.00753806,2982.3,2981.7,1.7713]
[1766257035528,1.00753806,2982.3,2981.6,0.44]
[1766257035835,1.00753806,2982.3,2982.0,1.7713]
[1766257036247,1.00753806,2982.3,2981.7,1.00753806]
[1766257036461,1.00753806,2982.3,2981.7,2.77883806]
[1766257036971,1.00753806,2982.3,2981.7,1.00753806]
[1766257037265,1.00753806,2982.3,2981.8,1.7713]
[1766257037437,1.00753806,2982.3,2981.9,1.7713]
[1766257038344,3.35389297,2982.5,2981.9,1.7713]
[1766257038564,0.3353893,2982.4,2981.9,1.7713]
[1766257039084,1.34292736,2982.4,2981.9,1.7713]
[1766257040659,1.00753806,2982.4,2981.9,1.7713]
[1766257040860,1.00753806,2982.4,2981.9,0.03353566]
[1766257041062,1.00753806,2982.4,2982.0,1.7713]
[1766257041364,1.00753806,2982.4,2982.0,2.7787873]
[1766257041567,0.001,2982.5,2982.1,1.7713]
[1766257041974,0.001,2982.5,2982.0,1.0074873]
[1766257042173,0.001,2982.5,2982.0,0.44]
[1766257042486,0.45342012,2983.0,2982.2,1.7713]
[1766257042487,1.00742302,2982.8,2982.2,1.7713]
[1766257042658,1.48875198,2982.8,2982.2,1.7713]
[1766257042986,0.002,2982.5,2982.2,1.7713]
[1766257043185,0.002,2982.5,2982.2,2.77872302]
[1766257044805,0.002,2982.5,2982.3,0.6]
[1766257045009,0.002,2982.5,2982.3,2.3713]
[1766257045371,0.57972648,2982.6,2982.3,1.7713]
[1766257045573,0.57972648,2982.6,2982.4,1.9828]
[1766257045882,0.57972648,2982.6,2982.4,2.3713]
[1766257046404,1.60507639,2985.7,2982.6,1.3828]
[1766257046405,0.001,2983.7,2982.6,1.3828]
[1766257046617,0.001,2983.7,2983.4,10.40546287]
[1766257046768,0.001,2983.7,2983.2,12.61676287]
[1766257047218,0.001,2983.7,2983.3,1.00705103]
[1766257047808,0.33623224,2983.7,2983.3,1.00705103]
[1766257048107,0.001,2983.7,2983.3,1.00705103]
[1766257048999,0.001,2983.7,2983.5,0.3566]
[1766257049574,0.001,2983.7,2983.3,1.00705103]
[1766257050000,0.001,2983.7,2982.6,3.35267044]
[1766257050301,0.001,2983.7,2982.8,1.7826]
[1766257050302,0.002,2982.9,2982.8,1.7826]
[1766257050479,0.001,2983.7,2982.8,2.34013783]
[1766257050682,0.001,2983.7,2982.9,1.7826]
[1766257052090,1.00708484,2983.6,2982.9,1.7826]
[1766257052577,4.35876098,2983.6,2982.7,2.78968484]
[1766257052776,4.35876098,2983.6,2982.9,0.44]
[1766257053107,7.71043712,2983.6,2982.9,0.44]
[1766257053278,1.81169,2983.5,2982.9,0.44]
[1766257054598,3.3518804,2983.4,2982.9,0.44]
[1766257054987,3.3518804,2983.4,2982.9,0.2653]
[1766257055310,10.40546287,2983.3,2982.6,0.44]
[1766257056608,3.35210512,2983.2,2982.6,0.44]
[1766257056808,5.06439197,2983.2,2982.6,0.44]
[1766257059408,5.06639197,2983.2,2982.6,0.44]
[1766257060781,0.002,2983.2,2982.6,0.44]
[1766257066814,10.4054633,2983.0,2982.1,1.7358]
[1766257067113,10.4054633,2983.0,2982.1,0.44]
[1766257067519,10.4054633,2983.0,2982.5,0.001]
[1766257068916,3.35244225,2982.9,2982.5,0.001]
[1766257069120,5.10745455,2982.9,2982.5,0.001]
[1766257070236,10.4054633,2982.6,2982.1,0.44]
[1766257070530,10.4054633,2982.6,2982.0,0.001]
[1766257070902,10.4054633,2982.5,2982.0,0.001]
[1766257072352,6.7055589,2982.6,2982.0,0.001]
[1766257072531,6.71897902,2982.6,2982.0,0.001]
[1766257072729,1.75644423,2982.5,2982.0,0.001]
[1766257073427,3.35300429,2982.4,2982.0,0.001]
[1766257078749,0.002,2982.6,2982.0,0.001]
[1766257078920,0.002,2982.6,2982.3,1.7358]
[1766257079521,0.002,2982.6,2982.1,1.7358]
[1766257080350,0.002,2982.6,2982.2,1.7358]
[1766257081248,0.002,2982.6,2982.2,12.1412633]
[1766257081552,0.002,2982.6,2982.3,1.7358]
[1766257083134,0.002,2982.6,2981.6,1.7368]
[1766257083335,0.01542012,2982.6,2981.6,1.7368]
[1766257083621,0.44,2982.5,2981.6,1.7368]
[1766257084067,0.01342012,2982.4,2981.6,1.7368]
[1766257084358,0.01342012,2982.4,2981.6,0.001]
[1766257084568,1.08588834,2982.3,2981.6,0.001]
[1766257084764,11.49135164,2982.3,2981.8,0.001]
[1766257084966,10.4054633,2982.1,2981.5,0.6]
[1766257085133,0.44,2982.0,2981.5,0.5479]
[1766257087956,0.81933416,2982.0,2981.5,0.5479]
[1766257090654,4.17288734,2982.0,2981.5,0.5479]
[1766257092063,4.17288734,2982.0,2981.5,0.5489]
[1766257099258,0.81933416,2982.0,2981.5,0.5489]
[1766257104173,0.37933416,2982.0,2981.5,0.5489]
[1766257107083,3.73278984,2982.0,2981.5,0.5489]
[1766257107650,0.41747898,2981.9,2981.5,0.5489]
[1766257107850,3.771093,2981.9,2981.5,0.5489]
[1766257108176,7.12470702,2981.9,2981.5,1e-08]
[1766257108382,0.01342012,2981.8,2980.8,0.001]
[1766257108581,0.01342012,2981.8,2980.8,1.6784]
[1766257108582,0.44,2981.7,2980.8,1.6784]
[1766257108877,1.1524471,2981.7,2980.9,1.6774]
[1766257109446,1.1524471,2981.7,2981.5,0.001]
[1766257110351,4.50624496,2981.7,2981.5,0.001]
[1766257111470,0.01342012,2981.6,2980.8,0.001]
[1766257111782,0.01342012,2981.4,2980.8,0.001]
[1766257111980,3.35424143,2981.3,2980.8,0.001]
[1766257113082,3.35417249,2981.4,2980.8,0.001]
[1766257114076,3.35401643,2981.5,2980.8,0.001]
[1766257114286,0.41547752,2981.4,2980.8,0.001]
[1766257114994,0.44,2981.3,2980.8,0.001]
[1766257115579,0.01342012,2981.2,2980.8,0.001]
[1766257116606,3.35446647,2981.1,2980.8,0.001]
[1766257117201,6.70893294,2981.1,2980.8,0.001]
[1766257117497,7.42516825,2981.1,2980.8,0.001]
[1766257121801,4.07070178,2981.1,2980.8,0.001]
[1766257122005,0.44,2981.0,2980.8,0.001]
[1766257126805,3.79460573,2981.0,2980.8,0.001]
[1766257130107,3.35460573,2981.0,2980.8,0.001]
[1766257130310,4.53713692,2981.0,2980.8,0.001]
[1766257130809,3.79460573,2981.0,2980.8,0.001]
[1766257131420,3.35460573,2981.0,2980.8,0.001]
[1766257131612,3.79460573,2981.0,2980.8,0.001]
[1766257139720,3.35424143,2981.3,2980.8,0.001]
[1766257140018,0.44,2981.2,2980.8,0.001]
[1766257141424,1.19638572,2981.2,2980.8,0.001]
[1766257141741,3.35417007,2981.4,2980.8,0.001]
[1766257142030,3.79417007,2981.4,2980.8,1.7012]
[1766257146634,3.79417007,2981.4,2980.8,0.001]
[1766257148126,0.002,2981.5,2980.8,0.001]
[1766257148333,0.44,2981.4,2980.8,1.671]
[1766257148798,0.44,2981.4,2980.8,12.09024474]
[1766257153333,3.79417015,2981.4,2980.8,10.42024474]
[1766257166949,4.51052318,2981.4,2980.8,0.001]
[1766257167315,1.15635303,2981.4,2980.9,10.41924474]
[1766257167609,0.44,2981.4,2981.1,10.41428658]
[1766257168646,0.44,2981.4,2980.9,10.41428658]
[1766257170043,0.44,2981.4,2980.8,1.6455]
[1766257173344,3.79415989,2981.4,2980.8,1.6455]
[1766257176450,0.44,2981.4,2980.8,1.6455]
[1766257176951,0.44,2981.4,2980.9,1.5997]
[1766257178235,0.002,2981.5,2980.9,1.5997]
[1766257178437,0.002,2981.5,2980.9,2.80138549]
[1766257178753,0.442,2981.5,2980.9,1.20168549]
[1766257179061,0.442,2981.5,2981.0,1.5997]
[1766257181160,3.79603113,2981.5,2981.0,1.5997]
[1766257181862,0.442,2981.5,2981.0,1.5997]
[1766257183559,0.002,2981.5,2981.0,1.5997]
[1766257190581,0.002,2981.5,2980.9,2.80138549]
[1766257191479,0.002,2981.5,2981.0,10.41615485]
[1766257193881,0.002,2981.5,2981.0,12.01585485]
[1766257194081,0.002,2981.5,2981.0,13.33780888]
[1766257196386,0.44,2981.6,2981.2,10.41615485]
[1766257197757,3.35382621,2981.7,2981.2,10.41615485]
[1766257197952,3.79382621,2981.7,2981.2,10.41615485]
[1766257200367,0.002,2981.6,2981.2,10.41615485]
[1766257200696,0.002,2981.6,2981.3,1.20158549]
[1766257202367,0.002,2982.0,2981.4,12.01585485]
[1766257202568,0.002,2982.0,2981.7,10.41615485]
[1766257202769,0.002,2982.0,2981.5,10.41615485]
[1766257203001,0.002,2982.0,2981.0,0.44]
[1766257203002,0.002,2982.0,2981.3,10.41615485]
[1766257203780,0.01542012,2982.0,2981.3,10.41615485]
[1766257203988,0.002,2982.0,2981.5,10.41615485]
[1766257205197,3.35545405,2982.0,2981.5,10.41615485]
[1766257207711,3.35545405,2982.0,2981.5,10.41116922]
[1766257210106,3.35545405,2982.0,2981.4,1.04161548]
[1766257210307,3.35545405,2982.0,2981.2,1.4761]
[1766257215321,3.35545405,2982.0,2981.1,10.41116922]
[1766257215829,3.35545405,2982.0,2981.2,1.1183]
[1766257215993,3.35545405,2982.0,2981.3,0.3578]
[1766257216194,3.35545405,2982.0,2981.3,1.4761]
[1766257216393,3.35545405,2982.0,2981.3,2.66482692]
[1766257216726,3.35545405,2982.0,2981.3,1.4761]
[1766257219738,6.7089081,2982.0,2981.1,1.4761]
[1766257222359,3.35545405,2982.0,2981.1,1.4761]
[1766257223133,3.35545405,2982.0,2981.0,10.85216922]
[1766257223340,3.35545405,2982.0,2981.1,1.4361]
[1766257223635,3.35545405,2982.0,2981.2,1.22882692]
[1766257224837,3.35545405,2982.0,2981.2,2.66492692]
[1766257229857,3.35545405,2982.0,2981.2,1.4361]
[1766257231940,6.7089081,2982.0,2981.0,0.441]
[1766257232273,6.72232822,2982.0,2981.0,0.441]
[1766257234050,6.72232822,2982.0,2981.0,0.001]
[1766257235263,0.01342012,2981.8,2981.0,0.001]
[1766257235573,6.72190298,2981.3,2980.6,0.001]
[1766257235776,0.44,2981.2,2980.6,0.001]
[1766257237773,6.70893294,2981.1,2980.6,0.001]
[1766257237949,7.71691447,2981.1,2980.6,0.001]
[1766257238144,0.81569145,2981.0,2980.6,0.001]
[1766257240365,3.35469153,2980.9,2980.6,0.001]
[1766257240693,0.44,2980.8,2980.6,0.001]
[1766257242393,6.70983326,2980.7,2980.0,0.002]
[1766257242591,7.71798077,2980.7,2980.0,0.002]
[1766257242797,1.85845051,2980.6,2980.0,0.002]
[1766257243607,10.41310419,2980.5,2979.6,0.001]
[1766257243770,10.41310419,2979.7,2978.9,0.002]
[1766257244102,0.45342012,2979.6,2978.9,0.002]
[1766257244276,1.08665243,2979.5,2978.9,0.002]
[1766257244600,3.35638047,2979.4,2978.9,0.002]
[1766257245302,13.80286165,2979.4,2978.9,0.002]
[1766257245511,3.36980059,2979.4,2978.9,0.002]
[1766257245713,1.82457945,2979.3,2978.9,0.002]
[1766257246001,0.44,2979.2,2978.9,0.002]
[1766257246306,0.44,2979.2,2978.2,0.002]
[1766257246307,10.88648118,2979.2,2978.2,0.002]
[1766257246512,3.35671847,2979.1,2978.2,0.002]
[1766257246707,6.71343694,2979.1,2978.2,0.002]
[1766257247023,1.77341193,2979.0,2978.2,0.002]
[1766257247317,0.01342012,2978.8,2978.2,0.002]
[1766257247477,0.01342012,2978.6,2978.2,0.002]
[1766257247677,0.44,2978.7,2978.2,0.002]
[1766257248693,3.35728194,2978.6,2978.2,0.002]
[1766257248909,0.37972819,2978.5,2978.2,0.002]
[1766257249417,0.01342012,2978.3,2977.9,0.001]
[1766257249629,0.44,2978.2,2976.9,4.36808089]
[1766257249825,0.44,2978.2,2977.1,1.494]
[1766257250131,1.00896804,2978.1,2977.2,1.494]
[1766257251216,1.00896804,2978.1,2977.3,1.494]
[1766257251449,0.44,2978.2,2977.6,1.494]
[1766257251737,0.44,2978.2,2977.9,1.494]
[1766257252411,0.44,2978.3,2977.8,1.1453]
[1766257252654,3.37028716,2979.0,2977.2,7.15770663]
[1766257252655,0.01342012,2979.4,2978.4,1.1453]
[1766257252941,0.44,2979.1,2978.4,1.494]
[1766257254443,0.44,2979.1,2978.2,1.1453]
[1766257254646,0.44,2979.1,2978.5,0.3487]
[1766257254856,3.35662419,2979.2,2978.5,0.3487]
[1766257255017,0.44,2979.0,2978.5,0.3487]
[1766257255315,0.44,2978.9,2978.5,0.3487]
[1766257255717,0.44,2978.9,2978.5,1.35734238]
[1766257258632,0.44,2978.9,2978.5,2.50264238]
[1766257258961,0.44,2978.9,2978.5,2.90246829]
[1766257260254,4.37848035,2979.4,2978.6,1.494]
[1766257260440,3.84084174,2980.3,2978.9,1.494]
[1766257260630,0.44,2979.7,2978.9,1.494]
[1766257261260,0.44,2979.7,2978.9,2.50253387]
[1766257261455,3.35615518,2979.6,2978.9,2.50253387]
[1766257261622,3.35615518,2979.6,2978.9,1.00853387]
[1766257261623,6.72573048,2979.6,2978.9,1.00853387]
[1766257261828,0.01342012,2979.2,2978.4,0.002]
[1766257262128,0.44,2979.1,2978.4,0.002]
[1766257264080,3.79682216,2979.1,2978.4,0.002]
[1766257264578,0.01342012,2979.0,2978.4,0.002]
[1766257264749,1.02215068,2979.0,2978.4,0.002]
[1766257264946,0.8175795,2978.9,2978.4,0.002]
[1766257266071,4.17463074,2978.9,2978.4,0.002]
[1766257268259,0.8175795,2978.9,2978.4,0.002]
[1766257268456,0.44,2978.8,2978.5,1.378]
[1766257270688,0.44,2978.9,2978.6,0.3699]
[1766257270993,0.44,2978.9,2978.6,1.378]
[1766257271594,1.00966612,2979.2,2978.6,1.378]
[1766257271761,0.44,2979.0,2978.6,1.378]
[1766257275263,0.441,2979.2,2978.8,1.0081]
[1766257275573,0.44,2979.4,2979.1,1.378]
[1766257276161,0.44,2979.4,2978.8,10.43306106]
[1766257276490,0.44,2979.4,2978.9,1.378]
[1766257276697,0.44,2979.4,2978.7,1.00853387]
[1766257276884,0.44,2979.4,2978.9,0.3699]
[1766257277195,0.44,2979.4,2979.0,1.378]
[1766257277569,0.44,2979.6,2978.8,10.43306106]
[1766257277772,0.44,2979.6,2979.1,1.378]
[1766257279297,1.00845929,2979.8,2979.1,1.378]
[1766257279600,0.44,2979.6,2979.1,1.378]
[1766257280097,0.001,2979.2,2979.1,1.378]
[1766257280301,0.44,2979.6,2979.0,1.00845929]
[1766257280501,0.44,2979.6,2979.2,0.3699]
[1766257280706,0.44,2979.6,2979.2,1.378]
[1766257282302,4.3643957,2979.8,2979.2,1.378]
[1766257282475,0.44,2979.7,2979.2,1.378]
[1766257283507,1.00845929,2979.8,2979.2,1.378]
[1766257283679,0.44,2979.7,2979.0,2.25694194]
[1766257283879,0.44,2979.7,2979.2,1.3626]
[1766257285098,3.79606627,2979.7,2979.0,1.00845929]
[1766257285283,4.27650611,2979.7,2979.0,1.00845929]
[1766257286405,4.27750611,2979.7,2979.0,1.00845929]
[1766257292413,0.92143984,2979.7,2979.1,1.3626]
[1766257292614,4.2774925,2979.7,2979.1,1.3626]
[1766257293485,4.2774925,2979.7,2979.0,1.01045929]
[1766257293921,4.2774925,2979.7,2979.0,2.37305929]
[1766257296414,3.79705266,2979.7,2979.0,2.37305929]
[1766257298089,3.79705266,2979.7,2979.0,1.3646]
[1766257312158,0.001,2979.7,2979.0,0.002]
[1766257312347,0.001,2979.7,2979.2,10.42834566]
[1766257312649,0.001,2979.7,2979.4,11.77034566]
[1766257312849,0.001,2979.7,2979.5,1.342]
[1766257313051,3.79566813,2980.1,2979.6,10.42834566]
[1766257313351,3.79566813,2980.1,2979.6,11.77034566]
[1766257317256,3.79566813,2980.1,2979.6,1.342]
[1766257318557,0.44,2980.1,2979.6,1.342]
[1766257320272,0.441,2980.1,2979.6,1.342]
[1766257320557,0.441,2980.1,2979.6,2.63693802]
[1766257324271,0.441,2980.1,2979.6,1.342]
[1766257332497,0.441,2980.1,2979.6,11.76628702]
[1766257332782,0.441,2980.1,2979.7,1.3293]
[1766257356320,0.441,2980.1,2979.6,0.002]
[1766257356515,0.441,2980.1,2979.7,1.0277]
[1766257356718,0.441,2980.1,2979.8,1.3952]
[1766257359298,0.441,2980.1,2979.6,1.3972]
[1766257368336,0.441,2980.1,2979.7,1.3952]
[1766257369032,0.441,2980.1,2979.6,0.18612]
[1766257369033,0.001,2980.1,2979.6,0.18612]
[1766257369238,0.001,2980.1,2979.8,1.3952]
[1766257380823,0.001,2980.1,2979.6,0.002]
[1766257381332,0.001,2980.1,2979.5,0.002]
[1766257397827,0.001,2980.1,2979.6,1.3198]
[1766257398052,0.44,2980.0,2979.5,0.002]
[1766257398255,0.44,2980.0,2979.6,1.3198]
[1766257402258,0.001,2980.1,2979.6,1.3198]
[1766257402438,0.44,2980.0,2979.6,1.3198]
[1766257405757,0.001,2980.1,2979.5,1.3027]
[1766257406358,0.001,2980.1,2979.5,0.002]
[1766257406532,0.001,2980.1,2979.6,1.3007]
[1766257407960,0.001,2980.1,2979.5,10.76575636]
[1766257408160,0.001,2980.1,2979.7,0.3487]
[1766257408454,0.001,2980.1,2979.8,1.3007]
[1766257408861,0.001,2980.1,2979.6,1.3007]
[1766257410464,0.001,2980.1,2979.5,0.33804918]
[1766257410860,0.001,2980.1,2979.5,0.002]
[1766257420175,0.001,2980.1,2979.5,1.01030676]
[1766257429151,0.441,2980.1,2979.7,0.354]
[1766257429352,0.441,2980.1,2979.8,1.3585]
[1766257430981,0.441,2980.1,2979.6,1.00829998]
[1766257432555,0.441,2980.1,2979.5,0.002]
[1766257432756,0.441,2980.1,2979.6,1.00829998]
[1766257433715,10.42407994,2980.0,2979.6,1.00829998]
[1766257433883,4.27707263,2980.1,2979.6,1.00829998]
[1766257434084,4.27707263,2980.1,2979.5,0.002]
[1766257434283,1.00829998,2980.0,2979.5,0.002]
[1766257442419,4.36402378,2980.0,2979.5,0.002]
[1766257442725,5.21418827,2980.0,2979.5,0.002]
[1766257443020,1.0083576,2979.9,2979.5,0.002]
[1766257452543,1.0093576,2979.9,2979.5,0.002]
[1766257452835,0.001,2979.9,2979.5,0.002]
[1766257453241,1.00836438,2979.8,2979.5,0.002]
[1766257474978,1.00936438,2979.8,2979.5,0.002]
[1766257480788,0.001,2979.8,2979.5,0.002]
[1766257500677,0.001,2979.8,2979.6,1.3117]
[1766257501364,0.001,2979.9,2979.6,1.3117]
[1766257501764,0.001,2980.1,2979.6,1.3117]
[1766257502102,0.001,2980.1,2979.6,0.966]
[1766257502267,0.001,2980.1,2979.9,1.3117]
[1766257502470,0.001,2980.1,2979.7,0.966]
[1766257502770,0.001,2980.1,2979.5,0.442]
[1766257502771,0.001,2980.1,2979.9,1.3117]
[1766257507480,0.001,2980.1,2979.6,1.7917]
[1766257510296,0.001,2980.1,2979.6,0.44]
[1766257510481,0.001,2980.1,2979.7,1.3517]
[1766257514993,0.001,2980.1,2979.6,0.44]
[1766257515192,0.001,2980.1,2979.6,0.66357]
[1766257515394,0.001,2980.1,2979.6,0.44]
[1766257516516,0.001,2980.1,2979.5,1.7937]
[1766257519014,0.001,2980.1,2979.5,0.442]
[1766257519525,0.001,2980.1,2979.8,0.9774]
[1766257519700,0.001,2980.1,2979.8,1.3517]
[1766257526323,0.001,2980.1,2979.6,0.44]
[1766257533001,0.001,2980.1,2979.6,0.66357]
[1766257534630,0.001,2980.1,2979.7,1.2698]
[1766257542040,0.001,2980.1,2979.7,2.27803899]
[1766257547148,0.001,2980.1,2979.7,1.00823899]
[1766257547446,0.001,2980.1,2979.8,1.2698]
[1766257553045,0.001,2980.1,2979.7,1.00823899]
[1766257553252,0.001,2980.1,2979.9,1.2698]
[1766257553746,0.001,2980.1,2979.8,1.2698]
[1766257553949,0.001,2980.1,2979.8,0.9068]
[1766257554141,0.001,2980.1,2979.9,1.2698]
[1766257554532,0.001,2980.1,2980.0,0.363]
[1766257554735,0.001,2980.1,2980.0,1.2698]
[1766257556046,0.001,2980.1,2979.8,10.86562372]
[1766257556252,0.001,2980.1,2979.8,1.7108]
[1766257557460,0.001,2980.1,2979.8,0.441]
[1766257557627,0.001,2980.1,2979.9,1.2698]
[1766257561764,1.44921527,2980.4,2979.8,0.443]
[1766257561955,0.441,2980.4,2979.9,1.2698]
[1766257562160,0.441,2980.4,2979.9,0.9068]
[1766257562460,0.001,2980.4,2980.0,1.2698]
[1766257574367,0.001,2980.4,2980.0,1.2718]
[1766257597986,0.001,2980.4,2980.0,0.002]
[1766257598188,0.001,2980.4,2980.1,1.3026]
[1766257600184,0.001,2980.4,2980.0,0.002]
[1766257609817,0.48143587,2980.4,2979.8,0.002]
[1766257610293,1.00821527,2980.3,2979.8,0.002]
[1766257611065,1.00821527,2980.3,2979.8,1.3046]
[1766257621702,4.36358527,2980.3,2979.8,1.3046]
[1766257622123,4.36358527,2980.3,2979.8,0.002]
[1766257623205,1.00821527,2980.3,2979.8,0.002]
[1766257623405,3.36914326,2980.9,2980.0,10.42323606]
[1766257623406,3.35489369,2980.8,2980.0,10.42323606]
[1766257623705,0.001,2980.9,2980.6,1.3026]
[1766257624081,0.001,2980.9,2980.4,1.3026]
[1766257624407,0.001,2980.9,2980.6,0.1344034]
[1766257624604,0.001,2980.9,2980.6,1.4370034]
[1766257624984,0.001,2980.9,2980.7,1.2503]
[1766257634722,0.001,2980.9,2980.6,0.13439166]
[1766257634889,0.001,2980.9,2980.1,1.2503]
[1766257635090,0.13440656,2980.8,2980.1,1.6903]
[1766257635300,0.13440656,2980.8,2980.2,0.13440656]
[1766257645744,3.48921478,2980.8,2980.2,0.13440656]
[1766257646048,3.35480822,2980.8,2980.2,0.13440656]
[1766257646206,3.35480822,2980.8,2980.1,0.001]
[1766257646412,0.1344174,2980.7,2980.1,0.001]
[1766257646610,0.86291184,2980.7,2980.1,0.001]
[1766257647006,0.72849444,2980.7,2980.1,0.001]
[1766257647242,1.73662501,2980.7,2980.1,0.001]
[1766257648047,1.73662501,2980.7,2980.1,1.2513]
[1766257652833,1.73662501,2980.7,2980.1,0.001]
[1766257656049,10.42296927,2980.5,2980.1,0.001]
[1766257656248,10.42296927,2980.2,2979.8,0.002]
[1766257656546,0.45342012,2980.4,2979.8,0.002]
[1766257657048,0.13443954,2980.1,2979.8,0.002]
[1766257676533,0.44,2980.2,2979.8,0.002]
[1766257676734,1.43548337,2980.5,2979.8,0.002]
[1766257677070,0.72949444,2980.7,2979.9,10.8673891]
[1766257677071,0.001,2980.7,2979.9,10.8673891]
[1766257677258,0.001,2980.7,2980.3,0.3742]
[1766257677459,0.001,2980.7,2980.4,1.3361]
[1766257677971,0.001,2980.7,2980.4,1.47051153]
[1766257678163,0.001,2980.7,2980.4,1.3361]
[1766257678364,0.001,2980.7,2980.5,0.13440927]
[1766257681849,0.001,2980.7,2980.5,3.48952972]
[1766257682052,0.001,2980.7,2980.5,5.30819986]
[1766257682944,0.001,2980.7,2980.5,1.95307941]
[1766257683442,0.001,2980.7,2980.5,5.30821084]
[1766257685372,0.002,2981.2,2980.7,10.4273891]
[1766257685577,0.002,2981.2,2980.8,0.3611]
[1766257685781,0.002,2981.2,2980.8,1.2669]
[1766257685946,0.002,2981.2,2980.8,1.40129528]
[1766257686977,0.001,2981.3,2981.1,0.9058]
[1766257687274,0.001,2981.7,2981.2,1.2669]
[1766257687662,0.001,2981.7,2981.0,1.2669]
[1766257688043,0.001,2981.7,2981.1,1.00782238]
[1766257689479,0.001,2981.7,2981.1,2.27472238]
[1766257700586,0.001,2981.7,2981.1,1.00782238]
[1766257700760,0.001,2981.7,2981.2,1.2669]
[1766257705589,2.401,2981.6,2981.2,1.2669]
[1766257706781,2.401,2981.6,2981.1,1.00782238]
[1766257706965,2.401,2981.6,2981.1,2.27472238]
[1766257711172,2.401,2981.6,2981.1,3.84354844]
[1766257711468,2.401,2981.6,2981.2,11.71809762]
[1766257711669,2.401,2981.6,2981.3,1.3037]
[1766257715377,2.401,2981.6,2981.4,1.2699]
[1766257716366,2.401,2981.6,2981.4,2.27765805]
[1766257716568,0.441,2981.9,2981.4,1.00775805]
[1766257716896,0.441,2981.9,2981.5,1.2699]
[1766257717707,0.002,2981.6,2981.5,1.2699]
[1766257718898,0.441,2981.9,2981.4,1.00775805]
[1766257719098,0.441,2981.9,2981.6,1.2699]
[1766257719421,0.001,2981.9,2981.6,1.2699]
[1766257720282,0.001,2981.9,2981.5,3.35400601]
[1766257720283,0.001,2981.9,2981.5,11.4187742]
[1766257720615,0.6,2982.2,2981.5,11.4187742]
[1766257720616,1.04,2982.2,2981.6,4.83117363]
[1766257720789,1.04,2982.2,2981.8,0.3587]
[1766257720978,1.04,2982.2,2981.9,1.2699]
[1766257725809,1.042,2982.2,2981.9,1.2699]
[1766257726205,0.602,2982.2,2981.9,1.2699]
[1766257727494,0.602,2982.2,2981.7,3.35378979]
[1766257727698,0.602,2982.2,2981.9,1.2699]
[1766257728011,0.01342012,2982.6,2981.8,1.75300778]
[1766257728209,0.01342012,2982.4,2982.0,1.00741964]
[1766257728510,0.44,2982.4,2981.8,1.2699]
[1766257731886,0.44,2982.4,2981.9,0.3587]
[1766257732091,0.44,2982.4,2981.9,1.2699]
[1766257733520,0.442,2982.4,2981.9,1.2699]
[1766257733902,0.442,2982.4,2981.7,4.36135984]
[1766257734112,0.442,2982.4,2982.0,0.9112]
[1766257734434,0.442,2982.4,2982.0,1.2699]
[1766257737398,0.442,2982.4,2981.7,6.21775905]
[1766257737598,0.442,2982.4,2981.9,0.3587]
[1766257737822,0.002,2982.4,2981.8,10.40862501]
[1766257738029,0.002,2982.4,2982.1,0.3587]
[1766257738200,0.002,2982.4,2982.2,1.2699]
[1766257738717,3.79256382,2982.8,2982.0,1.2699]
[1766257738908,3.79256382,2982.8,2982.2,0.9112]
[1766257740229,3.79256382,2982.8,2981.9,1.12901807]
[1766257740535,0.01676643,2982.7,2981.9,2.39891807]
[1766257740738,0.01676643,2982.7,2982.0,1.2699]
[1766257741215,3.79456382,2982.8,2982.0,1.2699]
[1766257741216,0.442,2982.8,2982.0,1.2699]
[1766257741524,0.442,2982.8,2982.1,0.3587]
[1766257741728,0.442,2982.8,2982.2,1.2699]
[1766257742436,0.44,2982.7,2982.2,1.2699]
[1766257743120,0.42875799,2982.7,2982.2,1.2699]
[1766257743524,3.95248674,2982.9,2982.1,1.2699]
[1766257743736,0.6,2982.9,2982.1,10.40862501]
[1766257743907,0.6,2982.9,2982.1,14.04585503]
[1766257744109,0.6,2982.9,2982.1,11.69994323]